bitfinex-derivatives/quotes_BTCF0:USTF0_20250630
["timestamp","ask_amount","ask_price","bid_price","bid_amount"]
[1751320087343,0.90972543,107390.0,107380.0,0.1872265]
[1751320089843,0.96531661,107390.0,107380.0,0.1872265]
[1751320090542,0.90972543,107390.0,107380.0,0.1872265]
[1751320091345,1.27052543,107390.0,107380.0,0.1872265]
[1751320091745,1.27052543,107390.0,107380.0,0.001]
[1751320091947,1.27052543,107390.0,107380.0,0.1872265]
[1751320095449,1.27052543,107390.0,107380.0,0.001]
[1751320095649,1.27052543,107390.0,107380.0,0.1872265]
[1751320096150,1.26142702,107390.0,107380.0,0.1872265]
[1751320100060,1.27062584,107390.0,107380.0,0.1872265]
[1751320101061,1.0080786,107390.0,107380.0,0.1872265]
[1751320101263,1.27062584,107390.0,107380.0,0.1872265]
[1751320101569,1.16452702,107390.0,107380.0,0.1872265]
[1751320101866,1.73500702,107390.0,107380.0,0.54397374]
[1751320103865,1.73500702,107390.0,107380.0,0.2814265]
[1751320104066,1.73500702,107390.0,107380.0,0.54397374]
[1751320105868,0.71577068,107390.0,107380.0,0.54397374]
[1751320106067,0.35497068,107390.0,107380.0,1.16732098]
[1751320107170,0.17497068,107390.0,107380.0,1.16732098]
[1751320108057,0.17497068,107390.0,107380.0,1.73776098]
[1751320108456,0.00497068,107390.0,107380.0,1.73776098]
[1751320108868,0.02497068,107390.0,107380.0,1.73776098]
[1751320109569,0.00497068,107390.0,107380.0,1.73776098]
[1751320109869,0.00497068,107390.0,107380.0,1.73876098]
[1751320113472,0.19117978,107390.0,107380.0,1.73876098]
[1751320113672,0.19117978,107390.0,107380.0,1.73776098]
[1751320114074,0.00497068,107390.0,107380.0,1.73776098]
[1751320115474,0.19117978,107390.0,107380.0,1.73776098]
[1751320116162,0.19117978,107390.0,107380.0,1.73876098]
[1751320116372,0.19117978,107390.0,107380.0,1.73776098]
[1751320119477,0.00497068,107390.0,107380.0,1.73876098]
[1751320119879,0.00497068,107390.0,107380.0,1.73776098]
[1751320120573,0.00497068,107390.0,107380.0,1.76570528]
[1751320120975,0.00497068,107390.0,107380.0,1.76670528]
[1751320122281,0.00497068,107390.0,107380.0,1.78670528]
[1751320128886,0.00497068,107390.0,107380.0,1.80126113]
[1751320131186,0.00497068,107390.0,107380.0,2.16206113]
[1751320134180,0.00497068,107390.0,107380.0,2.1992344]
[1751320136494,0.00497068,107390.0,107380.0,2.18467855]
[1751320139287,0.00497068,107390.0,107380.0,1.46307855]
[1751320139486,0.00497068,107390.0,107380.0,2.18467855]
[1751320144393,0.00497068,107390.0,107380.0,2.15673425]
[1751320144597,0.19117978,107390.0,107380.0,1.49209425]
[1751320144894,0.25537978,107390.0,107380.0,2.06752907]
[1751320145095,0.06917068,107390.0,107380.0,2.13292907]
[1751320145595,0.25537978,107390.0,107380.0,2.13292907]
[1751320146490,0.06917068,107390.0,107380.0,2.13292907]
[1751320146692,0.25537978,107390.0,107380.0,2.13292907]
[1751320148196,0.06917068,107390.0,107380.0,2.13292907]
[1751320149799,0.51792702,107390.0,107380.0,0.97231459]
[1751320149989,0.51792702,107390.0,107380.0,1.78494183]
[1751320150692,0.25537978,107390.0,107380.0,1.78494183]
[1751320151594,0.25537978,107390.0,107380.0,2.04748907]
[1751320153199,0.25537978,107390.0,107380.0,2.03293322]
[1751320154100,0.28657978,107390.0,107380.0,2.03293322]
[1751320155204,0.10037068,107390.0,107380.0,2.04748985]
[1751320155402,0.28657978,107390.0,107380.0,2.04748985]
[1751320156599,0.28657978,107390.0,107380.0,0.95231537]
[1751320156798,0.28657978,107390.0,107380.0,1.78490261]
[1751320157599,0.28657978,107390.0,107380.0,2.04744985]
[1751320158701,0.28657978,107390.0,107380.0,2.08462312]
[1751320158904,0.28657978,107390.0,107380.0,2.07006649]
[1751320159198,0.28657978,107390.0,107380.0,2.03289322]
[1751320163202,0.28657978,107390.0,107380.0,1.50779874]
[1751320163406,0.28657978,107390.0,107380.0,2.03289322]
[1751320164505,0.28657978,107390.0,107380.0,2.03189322]
[1751320164706,0.28657978,107390.0,107380.0,2.03289322]
[1751320165996,0.28657978,107390.0,107380.0,1.31129322]
[1751320166200,0.28657978,107390.0,107380.0,1.67209322]
[1751320166409,0.28657978,107390.0,107380.0,1.70419322]
[1751320166906,0.28657978,107390.0,107380.0,1.17909874]
[1751320167208,0.28657978,107390.0,107380.0,1.70419322]
[1751320167606,0.28657978,107390.0,107380.0,1.73469322]
[1751320168008,0.28657978,107390.0,107380.0,1.73369322]
[1751320168210,0.28657978,107390.0,107380.0,1.73469322]
[1751320170511,0.28657978,107390.0,107380.0,1.77186649]
[1751320170713,0.00497068,107390.0,107380.0,1.75163172]
[1751320170912,0.00497068,107390.0,107380.0,1.78333172]
[1751320171110,0.19117978,107390.0,107380.0,1.78333172]
[1751320172112,0.19117978,107390.0,107380.0,1.82050499]
[1751320173605,0.00497068,107390.0,107380.0,1.82050499]
[1751320176905,0.19117978,107390.0,107380.0,1.82050499]
[1751320178015,0.00497068,107390.0,107380.0,1.82050499]
[1751320178617,0.00497068,107390.0,107380.0,1.79257275]
[1751320178914,0.19117978,107390.0,107380.0,1.79257275]
[1751320179214,0.19117978,107390.0,107380.0,1.82050674]
[1751320179713,0.00497068,107390.0,107380.0,1.82050674]
[1751320179910,0.19117978,107390.0,107380.0,1.79257275]
[1751320180112,0.19117978,107390.0,107380.0,1.82050596]
[1751320188327,0.19117978,107390.0,107380.0,1.79257275]
[1751320191927,0.19117978,107390.0,107380.0,1.43177275]
[1751320192129,0.19117978,107390.0,107380.0,1.79257275]
[1751320194024,0.19117978,107390.0,107380.0,1.82051587]
[1751320194226,0.19117978,107390.0,107380.0,1.79257275]
[1751320195431,0.00497068,107390.0,107380.0,1.79257275]
[1751320200132,0.00497068,107390.0,107380.0,1.85842116]
[1751320200625,0.00497068,107390.0,107380.0,1.83051784]
[1751320202939,0.00497068,107390.0,107380.0,1.85842116]
[1751320209540,0.00497068,107390.0,107380.0,1.80257275]
[1751320210642,0.00497068,107390.0,107380.0,1.79622116]
[1751320210944,0.19117988,107390.0,107380.0,1.74176634]
[1751320211242,0.28597988,107390.0,107380.0,1.74176634]
[1751320214345,0.09977068,107390.0,107380.0,1.74176634]
[1751320215145,0.28597988,107390.0,107380.0,1.74176634]
[1751320215346,0.28597988,107390.0,107380.0,1.77356634]
[1751320215648,0.28597988,107390.0,107380.0,1.77256634]
[1751320215851,0.28597988,107390.0,107380.0,1.77356634]
[1751320216242,0.28597988,107390.0,107380.0,1.77356687]
[1751320216748,0.28597988,107390.0,107380.0,1.76264974]
[1751320217750,0.25347988,107390.0,107380.0,1.76264974]
[1751320217950,0.25347988,107390.0,107380.0,1.83092301]
[1751320218154,0.25347988,107390.0,107380.0,1.83084301]
[1751320219754,0.25347988,107390.0,107380.0,1.26116301]
[1751320219954,0.25347988,107390.0,107380.0,1.83084301]
[1751320220656,0.25347988,107390.0,107380.0,1.80291275]
[1751320220956,0.25347988,107390.0,107380.0,1.23323275]
[1751320221166,0.25347988,107390.0,107380.0,1.80287275]
[1751320222257,0.25347988,107390.0,107380.0,1.85872116]
[1751320224957,0.25347988,107390.0,107380.0,1.85772116]
[1751320225254,0.25347988,107390.0,107380.0,1.85872116]
[1751320225450,0.19117988,107390.0,107380.0,1.85872116]
[1751320226062,0.19117988,107390.0,107380.0,1.80287275]
[1751320226659,0.19117988,107390.0,107380.0,1.81742911]
[1751320228062,0.19117988,107390.0,107380.0,1.81642911]
[1751320228262,0.19117988,107390.0,107380.0,1.81742911]
[1751320229561,0.19117988,107390.0,107380.0,1.78632911]
[1751320229761,0.28677988,107390.0,107380.0,1.78532911]
[1751320229962,0.28677988,107390.0,107380.0,1.78632911]
[1751320230764,0.28677988,107390.0,107380.0,1.78532911]
[1751320231065,0.28677988,107390.0,107380.0,1.78632911]
[1751320231264,0.28677988,107390.0,107380.0,1.78532911]
[1751320231463,0.28677988,107390.0,107380.0,1.78632911]
[1751320231865,0.28677988,107390.0,107380.0,1.77632911]
[1751320232066,0.28677988,107390.0,107380.0,1.77532911]
[1751320232253,0.28677988,107390.0,107380.0,1.77632911]
[1751320234560,0.28677988,107390.0,107380.0,1.80812911]
[1751320236971,0.25417988,107390.0,107380.0,1.80812911]
[1751320238372,0.22217988,107390.0,107380.0,1.80812911]
[1751320238769,0.19117988,107390.0,107380.0,1.80812911]
[1751320240374,0.19117988,107390.0,107380.0,1.86397752]
[1751320241076,0.00497068,107390.0,107380.0,1.86397752]
[1751320241971,0.00497068,107390.0,107380.0,1.80812911]
[1751320242276,0.00497068,107390.0,107380.0,1.80712911]
[1751320244174,0.19117988,107390.0,107380.0,1.80712911]
[1751320244574,0.19117988,107390.0,107380.0,1.80812911]
[1751320244776,0.19117988,107390.0,107380.0,1.80712911]
[1751320245579,0.19117988,107390.0,107380.0,1.80812911]
[1751320245782,0.19117988,107390.0,107380.0,1.80712911]
[1751320247384,0.19117988,107390.0,107380.0,1.74352911]
[1751320247679,0.28667988,107390.0,107380.0,1.74352911]
[1751320248075,0.28667988,107390.0,107380.0,1.77572911]
[1751320248379,0.28667988,107390.0,107380.0,1.80722911]
[1751320248580,0.28667988,107390.0,107380.0,1.80822911]
[1751320248976,0.28667988,107390.0,107380.0,1.86307752]
[1751320249177,0.22237988,107390.0,107380.0,1.86307752]
[1751320249983,0.22237988,107390.0,107380.0,1.33798304]
[1751320250480,0.22237988,107390.0,107380.0,1.86307752]
[1751320250680,0.22237988,107390.0,107380.0,1.83517574]
[1751320256893,0.22237988,107390.0,107380.0,1.82061938]
[1751320258292,0.22237988,107390.0,107380.0,1.2955249]
[1751320258493,0.22237988,107390.0,107380.0,1.82061938]
[1751320258690,0.22237988,107390.0,107380.0,1.82161938]
[1751320258895,0.22237988,107390.0,107380.0,1.82061938]
[1751320259096,0.22237988,107390.0,107380.0,1.2955249]
[1751320259296,0.22237988,107390.0,107380.0,1.82061938]
[1751320259598,0.22237988,107390.0,107380.0,1.80368088]
[1751320259896,0.22237988,107390.0,107380.0,1.23404088]
[1751320260096,0.22237988,107390.0,107380.0,1.80324088]
[1751320260998,0.28617988,107390.0,107380.0,1.80324088]
[1751320261395,0.28617988,107390.0,107380.0,1.54069364]
[1751320262600,0.28617988,107390.0,107380.0,1.17989364]
[1751320263089,0.19117988,107390.0,107380.0,1.17989364]
[1751320263597,0.19117988,107390.0,107380.0,1.54069364]
[1751320264797,0.54912712,107390.0,107380.0,0.47772037]
[1751320265103,0.54912712,107390.0,107380.0,0.02894663]
[1751320265104,0.79912712,107390.0,107380.0,0.02894663]
[1751320265298,0.1862265,107380.0,107370.0,0.02793758]
[1751320265598,3.30644372,107380.0,107370.0,0.02793758]
[1751320265798,0.1862612,107360.0,107350.0,0.9408531]
[1751320265998,0.44880844,107360.0,107350.0,1.15540299]
[1751320266199,0.51537912,107360.0,107350.0,1.15540299]
[1751320266806,0.51537912,107360.0,107350.0,1.1408531]
[1751320267307,0.51537912,107360.0,107350.0,0.7334841]
[1751320267493,0.51537912,107360.0,107350.0,0.47093686]
[1751320268205,0.84537912,107360.0,107350.0,0.47093686]
[1751320268406,0.84737912,107360.0,107350.0,0.47193686]
[1751320268602,0.89737912,107360.0,107350.0,0.47193686]
[1751320268800,0.89837912,107360.0,107350.0,0.47193686]
[1751320271301,0.89837912,107360.0,107350.0,0.43476359]
[1751320272202,1.46757912,107360.0,107350.0,0.43476359]
[1751320276813,1.46757912,107360.0,107350.0,0.23476359]
[1751320277012,1.46757912,107360.0,107350.0,0.49731083]
[1751320279714,1.46757912,107360.0,107350.0,0.23476359]
[1751320280721,1.46757912,107360.0,107350.0,0.49731083]
[1751320280905,1.08757912,107360.0,107350.0,0.49731083]
[1751320281109,1.46757912,107360.0,107350.0,0.49731083]
[1751320282514,0.82503188,107360.0,107350.0,0.49731083]
[1751320282820,1.46757912,107360.0,107350.0,0.49731083]
[1751320284419,1.46757912,107360.0,107350.0,0.23476359]
[1751320284620,0.23975417,107360.0,107350.0,0.49731083]
[1751320284821,0.31601497,107360.0,107350.0,0.59251083]
[1751320285022,0.57856221,107360.0,107350.0,0.59251083]
[1751320285721,0.95856221,107360.0,107350.0,0.59251083]
[1751320286321,1.52768221,107360.0,107350.0,0.59251083]
[1751320290023,1.52768221,107360.0,107350.0,0.55971083]
[1751320290224,1.62598221,107360.0,107350.0,0.55971083]
[1751320292724,1.62598221,107360.0,107350.0,0.92051083]
[1751320301726,1.62598221,107360.0,107350.0,0.65796359]
[1751320301928,1.62598221,107360.0,107350.0,0.62556359]
[1751320305633,1.88852945,107360.0,107350.0,0.59556359]
[1751320311041,1.62598221,107360.0,107350.0,0.59556359]
[1751320314645,1.05686221,107360.0,107350.0,0.59556359]
[1751320314844,1.88836945,107360.0,107350.0,0.54899619]
[1751320315050,1.88836945,107360.0,107350.0,0.00193149]
[1751320315240,0.1862786,107350.0,107340.0,0.00497218]
[1751320315547,1.23272584,107350.0,107340.0,0.00497218]
[1751320316247,1.23469652,107350.0,107340.0,0.00497218]
[1751320316949,1.55283494,107350.0,107340.0,0.00497218]
[1751320317746,1.55583494,107350.0,107340.0,0.00497218]
[1751320320148,1.68061843,107350.0,107340.0,0.00497218]
[1751320320553,1.68061843,107350.0,107320.0,0.64120845]
[1751320320554,0.1863132,107330.0,107320.0,0.64120845]
[1751320320744,1.02782044,107330.0,107320.0,0.64120845]
[1751320320944,1.07952044,107330.0,107320.0,0.64120845]
[1751320321144,1.45149112,107330.0,107320.0,0.64120845]
[1751320321545,1.45149112,107330.0,107320.0,0.70200845]
[1751320321744,1.45149112,107330.0,107320.0,0.34120845]
[1751320321745,1.81329112,107330.0,107320.0,0.34120845]
[1751320321952,1.81325381,107330.0,107320.0,0.34120845]
[1751320322152,1.55070657,107330.0,107320.0,0.00093175]
[1751320322350,1.81225381,107330.0,107320.0,0.00093175]
[1751320322557,1.55070657,107330.0,107320.0,0.00093175]
[1751320322742,1.81325381,107330.0,107320.0,0.00093175]
[1751320323042,1.81525381,107330.0,107320.0,0.00093175]
[1751320323445,1.81425381,107330.0,107320.0,0.18726215]
[1751320325358,1.9390373,107330.0,107320.0,0.18726215]
[1751320325659,1.9390373,107330.0,107320.0,0.00093175]
[1751320325847,2.20158454,107330.0,107320.0,0.00093175]
[1751320326151,1.9390373,107330.0,107320.0,0.00093175]
[1751320326858,1.9390373,107330.0,107320.0,0.18726205]
[1751320329464,1.67649006,107330.0,107320.0,0.18726205]
[1751320329758,1.9390373,107330.0,107320.0,0.18726205]
[1751320332055,1.9390373,107330.0,107320.0,0.00093175]
[1751320332262,1.9390373,107330.0,107320.0,0.18726205]
[1751320332763,2.1772373,107330.0,107320.0,0.18726205]
[1751320334366,2.2089373,107330.0,107320.0,0.18726205]
[1751320338071,1.94639006,107330.0,107320.0,0.18726205]
[1751320338270,2.2089373,107330.0,107320.0,0.18726205]
[1751320341469,2.47148454,107330.0,107320.0,0.00093175]
[1751320341768,2.47148454,107330.0,107320.0,0.18726195]
[1751320346174,2.52707572,107330.0,107320.0,0.18726195]
[1751320349570,2.52707572,107330.0,107320.0,0.00093175]
[1751320358775,0.1863299,107320.0,107310.0,0.0632]
[1751320358973,1.13984893,107320.0,107310.0,0.0632]
[1751320359166,1.17134893,107320.0,107310.0,0.0632]
[1751320360077,1.17234893,107320.0,107310.0,0.0632]
[1751320360677,1.29913242,107320.0,107310.0,0.0632]
[1751320361472,1.24354124,107320.0,107310.0,0.0632]
[1751320362678,1.25261497,107320.0,107310.0,0.0632]
[1751320364977,1.25261497,107320.0,107310.0,0.0324]
[1751320365170,1.87772615,107320.0,107310.0,0.0324]
[1751320365673,0.1863473,107310.0,107300.0,0.64271296]
[1751320365879,0.77082791,107310.0,107300.0,0.67444005]
[1751320366079,0.77082791,107310.0,107300.0,0.48809095]
[1751320366282,0.50828067,107310.0,107300.0,0.46012709]
[1751320366579,0.77082791,107310.0,107300.0,0.46012709]
[1751320366782,0.77382791,107310.0,107300.0,0.46012709]
[1751320366982,0.77346476,107310.0,107300.0,0.46012709]
[1751320367384,0.77346476,107310.0,107300.0,0.64649169]
[1751320367885,0.77310161,107310.0,107300.0,0.64649169]
[1751320368185,0.51055437,107310.0,107300.0,0.64649169]
[1751320368390,0.77310161,107310.0,107300.0,0.46012709]
[1751320368779,0.77189454,107310.0,107300.0,0.64649169]
[1751320368985,0.80469454,107310.0,107300.0,0.00462709]
[1751320369285,0.86649454,107310.0,107300.0,0.00462709]
[1751320369480,0.94268322,107310.0,107300.0,0.00462709]
[1751320370290,1.06746671,107310.0,107300.0,0.00462709]
[1751320370788,1.69081395,107310.0,107300.0,0.00462709]
[1751320371088,1.74640513,107310.0,107300.0,0.00462709]
[1751320371487,1.84896296,107310.0,107300.0,0.00462709]
[1751320371693,2.03534696,107310.0,107300.0,0.00462709]
[1751320371893,2.03534696,107310.0,107300.0,9e-08]
[1751320372088,0.1863645,107300.0,107290.0,0.117324]
[1751320372293,2.34911898,107300.0,107290.0,0.117324]
[1751320372603,2.51109923,107300.0,107290.0,0.117324]
[1751320373394,1.88001568,107300.0,107290.0,0.117324]
[1751320373586,2.40511016,107300.0,107290.0,0.117324]
[1751320374082,2.34951898,107300.0,107290.0,0.117324]
[1751320374285,2.405994,107300.0,107290.0,0.11866051]
[1751320374983,1.834074,107300.0,107290.0,0.11866051]
[1751320375188,1.595834,107300.0,107290.0,0.15146051]
[1751320375388,2.11555898,107300.0,107290.0,0.18256051]
[1751320375793,2.11555898,107300.0,107290.0,0.18273096]
[1751320377294,1.5904645,107300.0,107290.0,0.18273096]
[1751320377593,2.24034247,107300.0,107290.0,0.18273096]
[1751320378489,2.24034247,107300.0,107290.0,0.11883096]
[1751320378490,2.3419992,107300.0,107290.0,0.11883096]
[1751320379896,2.3419992,107300.0,107290.0,0.09993916]
[1751320380103,2.60454644,107300.0,107290.0,0.09993916]
[1751320380404,2.60454644,107300.0,107290.0,0.06856576]
[1751320381295,2.60354644,107300.0,107290.0,0.06856576]
[1751320381495,2.60454644,107300.0,107290.0,0.06856576]
[1751320381896,2.07983595,107300.0,107290.0,0.06856576]
[1751320382098,2.07983595,107300.0,107290.0,0.06892842]
[1751320383001,2.13531097,107300.0,107290.0,0.06929108]
[1751320383601,2.13931097,107300.0,107290.0,0.06929108]
[1751320384002,2.13931097,107300.0,107290.0,0.06965374]
[1751320385000,2.13931097,107300.0,107290.0,0.06984489]
[1751320388508,1.23617974,107300.0,107290.0,0.06984489]
[1751320388708,0.50078349,107300.0,107290.0,1.41854784]
[1751320388913,0.86158349,107300.0,107290.0,0.97571253]
[1751320389107,0.86158349,107300.0,107290.0,0.6227813]
[1751320389303,1.25187862,107300.0,107290.0,0.1863813]
[1751320389504,1.43827862,107300.0,107290.0,0.1863813]
[1751320390706,1.43927862,107300.0,107290.0,0.1863813]
[1751320391913,1.43927862,107300.0,107290.0,0.2172813]
[1751320392213,0.95634739,107300.0,107290.0,0.2490813]
[1751320392408,1.48827862,107300.0,107290.0,0.2490813]
[1751320392712,1.48927862,107300.0,107290.0,0.25017179]
[1751320393102,1.48927862,107300.0,107290.0,0.26723331]
[1751320393606,1.48927862,107300.0,107290.0,0.26742195]
[1751320394414,1.48827862,107300.0,107290.0,0.26742195]
[1751320394805,1.48927862,107300.0,107290.0,0.26742195]
[1751320396314,1.48827862,107300.0,107290.0,0.26742195]
[1751320396509,1.48927862,107300.0,107290.0,0.26742195]
[1751320397017,1.48827862,107300.0,107290.0,0.26742195]
[1751320397216,1.48927862,107300.0,107290.0,0.26742195]
[1751320397711,1.48827862,107300.0,107290.0,0.26742195]
[1751320398016,1.48927862,107300.0,107290.0,0.26742195]
[1751320399718,1.55407862,107300.0,107290.0,0.26778442]
[1751320399913,1.55307862,107300.0,107290.0,0.26778442]
[1751320400110,1.55407862,107300.0,107290.0,0.26778442]
[1751320400614,1.55407862,107300.0,107290.0,0.26814689]
[1751320401620,1.55407862,107300.0,107290.0,0.26850936]
[1751320401825,1.81681757,107300.0,107290.0,0.26850936]
[1751320402113,1.06114739,107300.0,107290.0,0.26850936]
[1751320402318,1.80681757,107300.0,107290.0,0.26850936]
[1751320402517,1.80681757,107300.0,107290.0,0.26870108]
[1751320403820,1.80681757,107300.0,107290.0,0.30190108]
[1751320404614,1.80581757,107300.0,107290.0,0.30190108]
[1751320404819,1.80681757,107300.0,107290.0,0.27010108]
[1751320405313,1.80581757,107300.0,107290.0,0.27010108]
[1751320405520,1.80681757,107300.0,107290.0,0.27010108]
[1751320406413,1.80681757,107300.0,107290.0,0.20600108]
[1751320407115,1.80581757,107300.0,107290.0,0.20600108]
[1751320407505,1.80681757,107300.0,107290.0,0.20600108]
[1751320407912,1.61941757,107300.0,107290.0,0.20600108]
[1751320408109,1.75201757,107300.0,107290.0,0.26970108]
[1751320408320,1.81461757,107300.0,107290.0,0.20600108]
[1751320408522,1.81461757,107300.0,107290.0,0.206364]
[1751320408821,1.77461757,107300.0,107290.0,0.206364]
[1751320409324,1.77461757,107300.0,107290.0,0.20672692]
[1751320409514,1.77461757,107300.0,107290.0,0.0032841]
[1751320409714,2.02461757,107300.0,107290.0,0.0032841]
[1751320410420,0.1863819,107290.0,107280.0,0.3261803]
[1751320410620,1.21221699,107290.0,107280.0,0.32982677]
[1751320410820,2.00567699,107290.0,107280.0,0.32982677]
[1751320411320,2.00567699,107290.0,107280.0,0.33001769]
[1751320411825,2.00673655,107290.0,107280.0,0.33001769]
[1751320413023,2.00973655,107290.0,107280.0,0.33001769]
[1751320413716,1.1584419,107290.0,107280.0,0.33001769]
[1751320413924,1.1279419,107290.0,107280.0,0.39161769]
[1751320414224,1.1273819,107290.0,107280.0,0.39161769]
[1751320414924,1.1273819,107290.0,107280.0,0.40161769]
[1751320415222,1.25216539,107290.0,107280.0,0.40161769]
[1751320415422,0.67596539,107290.0,107280.0,0.66451234]
[1751320416428,0.67696539,107290.0,107280.0,0.6924762]
[1751320417223,0.67696539,107290.0,107280.0,0.68863881]
[1751320417523,0.67696539,107290.0,107280.0,0.69283954]
[1751320418225,0.67696539,107290.0,107280.0,0.69320288]
[1751320418926,0.67696539,107290.0,107280.0,0.43030823]
[1751320419125,0.67696539,107290.0,107280.0,0.69320288]
[1751320419428,0.67696539,107290.0,107280.0,0.69356622]
[1751320420228,0.67696539,107290.0,107280.0,0.69375557]
[1751320421521,0.67696539,107290.0,107280.0,0.43086092]
[1751320423230,0.67696539,107290.0,107280.0,0.46803419]
[1751320424824,0.31616539,107290.0,107280.0,0.46803419]
[1751320425029,0.67696539,107290.0,107280.0,0.46803419]
[1751320427722,0.48958349,107290.0,107280.0,0.69375557]
[1751320427925,0.48958349,107290.0,107280.0,0.88017157]
[1751320428328,0.48958349,107290.0,107280.0,0.69375557]
[1751320428533,0.48958349,107290.0,107280.0,0.43086092]
[1751320429434,0.52198349,107290.0,107280.0,0.43086092]
[1751320429633,0.48958349,107290.0,107280.0,0.43086092]
[1751320430734,0.48958349,107290.0,107280.0,0.69375557]
[1751320431336,0.48958349,107290.0,107280.0,0.73092884]
[1751320431733,0.93879733,107290.0,107280.0,0.63209546]
[1751320431934,1.03449733,107290.0,107280.0,0.63209546]
[1751320432429,1.41449733,107290.0,107280.0,0.63209546]
[1751320432635,1.41449733,107290.0,107280.0,0.36926092]
[1751320433036,1.41549733,107290.0,107280.0,0.36926092]
[1751320434734,0.77266279,107290.0,107280.0,0.36926092]
[1751320434939,1.39549733,107290.0,107280.0,0.36926092]
[1751320437635,1.39549733,107290.0,107280.0,0.63209546]
[1751320438739,1.39549733,107290.0,107280.0,0.36926092]
[1751320439537,1.39549733,107290.0,107280.0,0.00511676]
[1751320439741,1.39549733,107290.0,107200.0,0.281875]
[1751320439742,0.1865183,107210.0,107200.0,0.281875]
[1751320439943,0.18048911,107190.0,107140.0,0.3608]
[1751320440247,0.1876738,107120.0,107110.0,0.02854688]
[1751320440543,4.12033245,107120.0,107110.0,0.02854688]
[1751320440738,2.01831726,107120.0,107110.0,0.02854688]
[1751320440942,0.51894432,107110.0,107100.0,0.005]
[1751320441139,1.67441452,107110.0,107100.0,0.0355]
[1751320441337,2.00441452,107110.0,107100.0,0.03486651]
[1751320441544,0.1876976,107100.0,107090.0,0.0298479]
[1751320441847,1.05615026,107100.0,107090.0,1.27834764]
[1751320442045,1.31837872,107100.0,107090.0,1.27834764]
[1751320442243,1.84819026,107100.0,107090.0,0.02910208]
[1751320442445,1.84849026,107100.0,107090.0,0.02910208]
[1751320442645,1.84901026,107100.0,107090.0,0.00710208]
[1751320443051,0.1867304,107080.0,107070.0,1.00328337]
[1751320443246,0.1867473,107070.0,107060.0,0.00520895]
[1751320443445,0.58488536,107070.0,107060.0,1.17445451]
[1751320443655,0.9146969,107070.0,107060.0,0.88445451]
[1751320443948,0.91519996,107070.0,107060.0,0.00520895]
[1751320444341,0.91519996,107070.0,107040.0,0.25128]
[1751320444342,0.1867821,107050.0,107040.0,0.25128]
[1751320444546,0.94572016,107050.0,107040.0,1.25244556]
[1751320444744,0.94572016,107050.0,107040.0,1.50372556]
[1751320444948,1.13161413,107050.0,107040.0,1.25244556]
[1751320445147,1.19722359,107050.0,107040.0,1.50372556]
[1751320445348,1.19722359,107050.0,107040.0,2.0203367]
[1751320445551,1.06961552,107050.0,107040.0,1.8335371]
[1751320445951,1.06961552,107050.0,107040.0,2.0203367]
[1751320446146,1.06961552,107050.0,107040.0,1.50372556]
[1751320446147,1.25639772,107050.0,107040.0,1.50372556]
[1751320446453,1.25839772,107050.0,107040.0,1.8335371]
[1751320446947,1.25839772,107050.0,107040.0,0.3732]
[1751320447151,1.25839772,107050.0,107040.0,0.31]
[1751320447346,1.86127772,107050.0,107040.0,0.31]
[1751320447549,1.67588681,107050.0,107040.0,0.31]
[1751320447857,1.70648681,107050.0,107040.0,0.31]
[1751320448045,2.06648681,107050.0,107040.0,0.31]
[1751320448247,2.39629835,107050.0,107040.0,0.31]
[1751320448952,2.42699835,107050.0,107040.0,0.31]
[1751320449347,2.51731237,107050.0,107040.0,0.31]
[1751320449647,2.09710681,107050.0,107040.0,0.19785279]
[1751320449849,1.73710681,107050.0,107040.0,0.19785279]
[1751320450048,0.1867997,107040.0,107030.0,0.0613]
[1751320450249,0.71133388,107040.0,107030.0,0.3813]
[1751320450455,0.71183694,107040.0,107030.0,0.3813]
[1751320451153,0.71283694,107040.0,107030.0,0.3813]
[1751320451740,0.58644082,107040.0,107030.0,0.3813]
[1751320451945,1.18888082,107040.0,107030.0,0.3813]
[1751320452149,1.314925,107040.0,107030.0,0.3813]
[1751320452543,1.18788082,107040.0,107030.0,0.3813]
[1751320452855,1.19188082,107040.0,107030.0,0.3813]
[1751320453057,0.58944082,107040.0,107030.0,0.3813]
[1751320453356,1.28283216,107040.0,107030.0,0.3813]
[1751320453556,1.19284082,107040.0,107030.0,0.3813]
[1751320453955,1.19280082,107040.0,107030.0,0.3813]
[1751320454355,0.58944082,107040.0,107030.0,0.3813]
[1751320454556,1.19280082,107040.0,107030.0,0.3813]
[1751320455165,1.19312082,107040.0,107030.0,0.3813]
[1751320455464,0.71422431,107040.0,107030.0,0.3813]
[1751320455762,1.38973661,107040.0,107030.0,0.71111154]
[1751320455955,0.78613661,107040.0,107030.0,1.5903571]
[1751320456265,1.31818431,107040.0,107030.0,1.5903571]
[1751320457056,0.71422431,107040.0,107030.0,1.26054556]
[1751320457261,1.31946431,107040.0,107030.0,1.5903571]
[1751320457764,1.39133018,107040.0,107030.0,1.6074054]
[1751320457962,1.39133018,107040.0,107030.0,1.7942225]
[1751320458266,1.31982431,107040.0,107030.0,1.27759386]
[1751320458558,1.31982431,107040.0,107030.0,1.7942225]
[1751320458760,1.31982431,107040.0,107030.0,1.46441096]
[1751320458961,1.31982431,107040.0,107030.0,1.7942225]
[1751320459156,0.71422431,107040.0,107030.0,1.7942225]
[1751320459462,1.31958431,107040.0,107030.0,1.7942225]
[1751320459660,0.52742461,107040.0,107030.0,1.7942225]
[1751320459866,1.31958421,107040.0,107030.0,1.7942225]
[1751320460164,0.52742461,107040.0,107030.0,1.7942225]
[1751320460365,1.32050421,107040.0,107030.0,1.7942225]
[1751320461162,0.52746629,107040.0,107030.0,1.9810785]
[1751320461462,0.4533045,107040.0,107030.0,1.9810785]
[1751320461760,0.44078481,107040.0,107030.0,2.2310785]
[1751320462159,0.44078481,107040.0,107030.0,1.9810785]
[1751320462466,0.16666686,107040.0,107030.0,1.9810785]
[1751320462867,0.1867772,107060.0,107050.0,0.1867821]
[1751320463167,0.2801644,107060.0,107050.0,0.95028563]
[1751320463465,0.2334689,107060.0,107050.0,0.97488563]
[1751320463672,0.2334689,107060.0,107050.0,0.3946]
[1751320463968,0.6352689,107060.0,107050.0,0.2513821]
[1751320464466,0.2744689,107060.0,107050.0,0.2513821]
[1751320464668,0.2744689,107060.0,107050.0,0.6013821]
[1751320464858,0.5944689,107060.0,107050.0,0.2513821]
[1751320465257,0.67239736,107060.0,107050.0,0.2523821]
[1751320466069,0.79718085,107060.0,107050.0,0.2523821]
[1751320466360,0.20271195,107060.0,107050.0,1.28299364]
[1751320466566,0.08999134,107070.0,107060.0,0.1867647]
[1751320466766,0.44908011,107080.0,107070.0,0.1867472]
[1751320466964,0.32303593,107080.0,107070.0,0.50068609]
[1751320467162,0.32303593,107080.0,107070.0,0.37]
[1751320467464,0.2334175,107080.0,107070.0,0.46327268]
[1751320467666,0.53004296,107080.0,107070.0,0.46327268]
[1751320467865,0.53004296,107080.0,107070.0,0.40725197]
[1751320468066,0.53104296,107080.0,107070.0,0.40721197]
[1751320468556,0.48935936,107080.0,107070.0,0.42477556]
[1751320468760,0.48935526,107080.0,107070.0,0.7545871]
[1751320469060,0.48935526,107080.0,107070.0,1.3613871]